[Event "Titled Tuesday Blitz January 25 2022"]
[White "Papp, Petra"]
[Black "Hakemi, Arman"]
[WhiteFideId "739049"]
[BlackFideId "22520805"]
[WhiteElo "2259"]
[BlackElo "2208"]
[Result "0-1"]
[Round "10"]
[TimeControl "180+1"]
[Date "2022.01.26"]
[WhiteClock "0:00:02"]
[BlackClock "0:01:03"]

1. d4 {[%clk 0:03:00]}  g6 {[%clk 0:03:00]} 2. e4 {[%clk 0:02:57]}  Bg7 {[%clk 0:03:00]} 3. Nc3 {[%clk 0:02:57]}  d6 {[%clk 0:03:01]} 4. Be3 {[%clk 0:02:55]}  a6 {[%clk 0:03:01]} 5. Qd2 {[%clk 0:02:48]}  b5 {[%clk 0:02:51]} 6. O-O-O {[%clk 0:02:48]}  Bb7 {[%clk 0:02:51]} 7. f3 {[%clk 0:02:48]}  Nd7 {[%clk 0:02:51]} 8. h4 {[%clk 0:02:48]}  h6 {[%clk 0:02:52]} 9. Kb1 {[%clk 0:02:41]}  e6 {[%clk 0:02:50]} 10. Nge2 {[%clk 0:02:27]}  Nb6 {[%clk 0:02:50]} 11. Nf4 {[%clk 0:02:20]}  Ne7 {[%clk 0:02:49]} 12. Bd3 {[%clk 0:02:16]}  Rc8 {[%clk 0:02:43]} 13. Qf2 {[%clk 0:01:57]}  d5 {[%clk 0:02:25]} 14. g4 {[%clk 0:01:42]}  Nc4 {[%clk 0:02:10]} 15. Bc1 {[%clk 0:01:35]}  dxe4 {[%clk 0:02:05]} 16. Bxe4 {[%clk 0:01:33]}  Bxe4 {[%clk 0:02:02]} 17. fxe4 {[%clk 0:01:28]}  b4 {[%clk 0:01:56]} 18. Nce2 {[%clk 0:01:22]}  Nd6 {[%clk 0:01:52]} 19. Qe3 {[%clk 0:01:06]}  Rb8 {[%clk 0:01:46]} 20. g5 {[%clk 0:00:47]}  Qd7 {[%clk 0:01:42]} 21. d5 {[%clk 0:00:44]}  exd5 {[%clk 0:01:30]} 22. Nxd5 {[%clk 0:00:40]}  hxg5 {[%clk 0:01:24]} 23. hxg5 {[%clk 0:00:35]}  Rxh1 {[%clk 0:01:25]} 24. Rxh1 {[%clk 0:00:35]}  Nxd5 {[%clk 0:01:26]} 25. exd5+ {[%clk 0:00:35]}  Kf8 {[%clk 0:01:27]} 26. Nd4 {[%clk 0:00:27]}  Nc4 {[%clk 0:01:26]} 27. Qf4 {[%clk 0:00:20]}  Qxd5 {[%clk 0:01:11]} 28. Qxc7 {[%clk 0:00:19]}  Re8 {[%clk 0:01:10]} 29. Rd1 {[%clk 0:00:16]}  Bxd4 {[%clk 0:01:10]} 30. Qf4 {[%clk 0:00:05]}  Rd8 {[%clk 0:01:07]} 31. Qh4 {[%clk 0:00:03]}  Kg8 {[%clk 0:01:06]} 32. Rh1 {[%clk 0:00:02]}  Bg7 {[%clk 0:01:04]} 33. Qh7+ {[%clk 0:00:01]}  Kf8 {[%clk 0:01:05]} 34. Rf1 {[%clk 0:00:02]}  Nd2+ {[%clk 0:01:02]} 35. Bxd2 {[%clk 0:00:02]}  Qxd2 {[%clk 0:01:03]} 0-1


[Site "https://www.chess.com"]

[Event "Titled Tuesday Blitz January 25 2022"]
[White "Poliannikov, Danila"]
[Black "Efimenko, Zahar"]
[WhiteFideId "30935245"]
[BlackFideId "14107201"]
[WhiteElo "2552"]
[BlackElo "2528"]
[Result "0-1"]
[Round "10"]
[TimeControl "180+1"]
[Date "2022.01.26"]
[WhiteClock "0:00:03"]
[BlackClock "0:00:17"]

1. Nf3 {[%clk 0:03:00]}  d6 {[%clk 0:02:59]} 2. d4 {[%clk 0:02:58]}  g6 {[%clk 0:02:57]} 3. b3 {[%clk 0:02:58]}  Bg7 {[%clk 0:02:56]} 4. Bb2 {[%clk 0:02:58]}  Bg4 {[%clk 0:02:56]} 5. e3 {[%clk 0:02:58]}  Nf6 {[%clk 0:02:54]} 6. h3 {[%clk 0:02:58]}  Bf5 {[%clk 0:02:53]} 7. Bd3 {[%clk 0:02:56]}  Bxd3 {[%clk 0:02:52]} 8. Qxd3 {[%clk 0:02:57]}  O-O {[%clk 0:02:52]} 9. O-O {[%clk 0:02:58]}  Nbd7 {[%clk 0:02:51]} 10. c4 {[%clk 0:02:57]}  Re8 {[%clk 0:02:51]} 11. Rd1 {[%clk 0:02:49]}  e5 {[%clk 0:02:46]} 12. dxe5 {[%clk 0:02:43]}  dxe5 {[%clk 0:02:45]} 13. Qe2 {[%clk 0:02:26]}  e4 {[%clk 0:02:43]} 14. Ne5 {[%clk 0:02:23]}  Qe7 {[%clk 0:02:33]} 15. Nxd7 {[%clk 0:02:22]}  Nxd7 {[%clk 0:02:32]} 16. Bxg7 {[%clk 0:02:23]}  Kxg7 {[%clk 0:02:33]} 17. Nc3 {[%clk 0:02:15]}  Nc5 {[%clk 0:02:32]} 18. Rd4 {[%clk 0:02:07]}  c6 {[%clk 0:02:14]} 19. Rad1 {[%clk 0:01:26]}  a5 {[%clk 0:02:13]} 20. Qb2 {[%clk 0:01:17]}  Qe5 {[%clk 0:01:58]} 21. Na4 {[%clk 0:00:56]}  Nd3 {[%clk 0:01:37]} 22. Qc3 {[%clk 0:00:51]}  Qf6 {[%clk 0:01:26]} 23. Rd6 {[%clk 0:00:41]}  Qxc3 {[%clk 0:01:17]} 24. Nxc3 {[%clk 0:00:42]}  Nc5 {[%clk 0:01:02]} 25. Na4 {[%clk 0:00:28]}  Nxa4 {[%clk 0:00:58]} 26. bxa4 {[%clk 0:00:29]}  Re7 {[%clk 0:00:58]} 27. Rd8 {[%clk 0:00:21]}  Rxd8 {[%clk 0:00:53]} 28. Rxd8 {[%clk 0:00:22]}  Re5 {[%clk 0:00:52]} 29. Kf1 {[%clk 0:00:10]}  Rc5 {[%clk 0:00:42]} 30. Rd4 {[%clk 0:00:09]}  f5 {[%clk 0:00:41]} 31. Ke2 {[%clk 0:00:09]}  Kf6 {[%clk 0:00:41]} 32. Kd2 {[%clk 0:00:06]}  Ke7 {[%clk 0:00:39]} 33. h4 {[%clk 0:00:05]}  Re5 {[%clk 0:00:33]} 34. Kc3 {[%clk 0:00:05]}  h6 {[%clk 0:00:30]} 35. g3 {[%clk 0:00:05]}  Re6 {[%clk 0:00:26]} 36. Rd1 {[%clk 0:00:05]}  Rd6 {[%clk 0:00:25]} 37. Rd4 {[%clk 0:00:03]}  c5 {[%clk 0:00:16]} 38. Rxd6 {[%clk 0:00:03]}  Kxd6 {[%clk 0:00:16]} 39. Kd2 {[%clk 0:00:03]}  Ke5 {[%clk 0:00:15]} 40. Ke2 {[%clk 0:00:03]}  g5 {[%clk 0:00:16]} 41. hxg5 {[%clk 0:00:03]}  hxg5 {[%clk 0:00:16]} 42. Kf1 {[%clk 0:00:04]}  f4 {[%clk 0:00:16]} 43. gxf4+ {[%clk 0:00:03]}  gxf4 {[%clk 0:00:16]} 44. Kg2 {[%clk 0:00:04]}  Kf5 {[%clk 0:00:17]} 45. Kh3 {[%clk 0:00:02]}  Kg5 {[%clk 0:00:17]} 46. Kg2 {[%clk 0:00:01]}  Kg4 {[%clk 0:00:17]} 47. Kg1 {[%clk 0:00:01]}  Kf3 {[%clk 0:00:17]} 48. exf4 {[%clk 0:00:01]}  Kxf4 {[%clk 0:00:18]} 49. Kf1 {[%clk 0:00:02]}  Kf3 {[%clk 0:00:16]} 50. Ke1 {[%clk 0:00:02]}  e3 {[%clk 0:00:16]} 51. fxe3 {[%clk 0:00:03]}  Kxe3 {[%clk 0:00:16]} 52. Kd1 {[%clk 0:00:03]}  Kd3 {[%clk 0:00:17]} 0-1


[Site "https://www.chess.com"]

[Event "Titled Tuesday Blitz January 25 2022"]
[White "Potapova, Margarita"]
[Black "Sapunov, Evgeny"]
[WhiteFideId "14126869"]
[BlackFideId "4126661"]
[WhiteElo "2209"]
[BlackElo "2470"]
[Result "0-1"]
[Round "10"]
[TimeControl "180+1"]
[Date "2022.01.26"]
[WhiteClock "0:00:06"]
[BlackClock "0:00:28"]

1. d4 {[%clk 0:03:00]}  Nf6 {[%clk 0:02:57]} 2. c4 {[%clk 0:03:01]}  g6 {[%clk 0:02:57]} 3. Nc3 {[%clk 0:03:00]}  Bg7 {[%clk 0:02:58]} 4. e4 {[%clk 0:02:59]}  O-O {[%clk 0:02:59]} 5. h3 {[%clk 0:02:59]}  d6 {[%clk 0:02:59]} 6. Be3 {[%clk 0:02:59]}  a6 {[%clk 0:02:59]} 7. f4 {[%clk 0:02:35]}  Nbd7 {[%clk 0:02:55]} 8. e5 {[%clk 0:02:34]}  Ne8 {[%clk 0:02:45]} 9. Nf3 {[%clk 0:02:30]}  c5 {[%clk 0:02:45]} 10. dxc5 {[%clk 0:02:18]}  dxe5 {[%clk 0:02:42]} 11. fxe5 {[%clk 0:02:17]}  Qa5 {[%clk 0:02:39]} 12. Be2 {[%clk 0:02:05]}  Nxe5 {[%clk 0:02:34]} 13. O-O {[%clk 0:01:59]}  Nc6 {[%clk 0:02:09]} 14. Nd5 {[%clk 0:01:54]}  Bf5 {[%clk 0:02:01]} 15. Qc1 {[%clk 0:01:30]}  Nf6 {[%clk 0:01:50]} 16. a3 {[%clk 0:01:27]}  e6 {[%clk 0:01:28]} 17. Nb6 {[%clk 0:01:22]}  Rad8 {[%clk 0:01:06]} 18. b4 {[%clk 0:01:18]}  Nxb4 {[%clk 0:01:06]} 19. axb4 {[%clk 0:01:19]}  Qxb4 {[%clk 0:01:07]} 20. Ra4 {[%clk 0:00:57]}  Qb3 {[%clk 0:01:06]} 21. Ra3 {[%clk 0:00:55]}  Qb4 {[%clk 0:01:05]} 22. Nd4 {[%clk 0:00:41]}  Ne4 {[%clk 0:00:47]} 23. Rb3 {[%clk 0:00:38]}  Qa5 {[%clk 0:00:44]} 24. Ra3 {[%clk 0:00:28]}  Qb4 {[%clk 0:00:44]} 25. Nc2 {[%clk 0:00:25]}  Qb2 {[%clk 0:00:40]} 26. Qxb2 {[%clk 0:00:25]}  Bxb2 {[%clk 0:00:40]} 27. Rb3 {[%clk 0:00:26]}  Be5 {[%clk 0:00:30]} 28. g4 {[%clk 0:00:26]}  Nd2 {[%clk 0:00:29]} 29. Bxd2 {[%clk 0:00:18]}  Bxc2 {[%clk 0:00:27]} 30. Re3 {[%clk 0:00:11]}  Bd4 {[%clk 0:00:28]} 31. Rc1 {[%clk 0:00:09]}  Bxc5 {[%clk 0:00:27]} 32. Rxc2 {[%clk 0:00:04]}  Rxd2 {[%clk 0:00:28]} 33. Rxd2 {[%clk 0:00:04]}  Bxe3+ {[%clk 0:00:28]} 34. Kg2 {[%clk 0:00:04]}  Bxd2 {[%clk 0:00:28]} 35. Nd7 {[%clk 0:00:04]}  Rd8 {[%clk 0:00:28]} 36. Nf6+ {[%clk 0:00:04]}  Kg7 {[%clk 0:00:28]} 37. Ne4 {[%clk 0:00:05]}  Bb4 {[%clk 0:00:28]} 38. Bf3 {[%clk 0:00:05]}  Be7 {[%clk 0:00:27]} 39. c5 {[%clk 0:00:05]}  Rc8 {[%clk 0:00:28]} 40. Nc3 {[%clk 0:00:05]}  Rxc5 {[%clk 0:00:28]} 41. Ne2 {[%clk 0:00:06]}  Rc2 {[%clk 0:00:28]} 0-1


[Site "https://www.chess.com"]

[Event "Titled Tuesday Blitz January 25 2022"]
[White "Pourkashiyan, Atousa"]
[Black "Panesar Vedant"]
[WhiteFideId "12502014"]
[BlackFideId "35033018"]
[WhiteElo "2247"]
[BlackElo "1971"]
[Result "0-1"]
[Round "10"]
[TimeControl "180+1"]
[Date "2022.01.26"]
[WhiteClock "0:00:03"]
[BlackClock "0:00:10"]

1. e4 {[%clk 0:03:00]}  c6 {[%clk 0:02:45]} 2. d4 {[%clk 0:02:59]}  d5 {[%clk 0:02:42]} 3. Nd2 {[%clk 0:03:00]}  dxe4 {[%clk 0:02:42]} 4. Nxe4 {[%clk 0:03:00]}  Nf6 {[%clk 0:02:42]} 5. Nxf6+ {[%clk 0:03:00]}  exf6 {[%clk 0:02:43]} 6. c3 {[%clk 0:02:59]}  Bd6 {[%clk 0:02:43]} 7. Bc4 {[%clk 0:02:59]}  O-O {[%clk 0:02:43]} 8. Ne2 {[%clk 0:02:57]}  Re8 {[%clk 0:02:43]} 9. O-O {[%clk 0:02:57]}  Nd7 {[%clk 0:02:43]} 10. Bf4 {[%clk 0:02:54]}  Nf8 {[%clk 0:02:41]} 11. Bxd6 {[%clk 0:02:54]}  Qxd6 {[%clk 0:02:42]} 12. Re1 {[%clk 0:02:54]}  Be6 {[%clk 0:02:32]} 13. Qb3 {[%clk 0:02:47]}  Bxc4 {[%clk 0:02:30]} 14. Qxc4 {[%clk 0:02:48]}  Re7 {[%clk 0:02:27]} 15. Ng3 {[%clk 0:02:47]}  Rae8 {[%clk 0:02:28]} 16. Rxe7 {[%clk 0:02:44]}  Qxe7 {[%clk 0:02:28]} 17. h3 {[%clk 0:02:42]}  Ng6 {[%clk 0:02:25]} 18. Nf5 {[%clk 0:02:38]}  Qd7 {[%clk 0:02:25]} 19. Ne3 {[%clk 0:02:19]}  Nf4 {[%clk 0:02:21]} 20. Rd1 {[%clk 0:02:17]}  Qd6 {[%clk 0:01:44]} 21. Qc5 {[%clk 0:01:56]}  Qb8 {[%clk 0:01:31]} 22. Qf5 {[%clk 0:01:47]}  Qd6 {[%clk 0:01:09]} 23. Nc4 {[%clk 0:01:44]}  Qc7 {[%clk 0:01:02]} 24. Ne3 {[%clk 0:01:42]}  Qd6 {[%clk 0:00:49]} 25. g3 {[%clk 0:01:38]}  Ng6 {[%clk 0:00:44]} 26. Qf3 {[%clk 0:01:29]}  b5 {[%clk 0:00:42]} 27. h4 {[%clk 0:01:23]}  a5 {[%clk 0:00:41]} 28. h5 {[%clk 0:01:23]}  Ne7 {[%clk 0:00:41]} 29. h6 {[%clk 0:01:18]}  g6 {[%clk 0:00:38]} 30. Ng4 {[%clk 0:01:19]}  Nd5 {[%clk 0:00:35]} 31. b3 {[%clk 0:01:13]}  f5 {[%clk 0:00:34]} 32. Ne5 {[%clk 0:01:12]}  b4 {[%clk 0:00:26]} 33. c4 {[%clk 0:00:55]}  Nc3 {[%clk 0:00:26]} 34. Rd3 {[%clk 0:00:54]}  c5 {[%clk 0:00:21]} 35. Qb7 {[%clk 0:00:30]}  Qe6 {[%clk 0:00:20]} 36. Re3 {[%clk 0:00:18]}  cxd4 {[%clk 0:00:17]} 37. Nxf7 {[%clk 0:00:14]}  dxe3 {[%clk 0:00:12]} 38. Ng5 {[%clk 0:00:06]}  exf2+ {[%clk 0:00:12]} 39. Kh2 {[%clk 0:00:04]}  Qe7 {[%clk 0:00:12]} 40. Qf3 {[%clk 0:00:03]}  Qxg5 {[%clk 0:00:10]} 0-1


[Site "https://www.chess.com"]

[Event "Titled Tuesday Blitz January 25 2022"]
[White "Prieto Aranguren, Alain"]
[Black "Martinez Ramirez, Lennis"]
[WhiteFideId "2268906"]
[BlackFideId "3509079"]
[WhiteElo "2235"]
[BlackElo "2374"]
[Result "0-1"]
[Round "10"]
[TimeControl "180+1"]
[Date "2022.01.26"]
[WhiteClock "0:00:01"]
[BlackClock "0:00:49"]

1. d4 {[%clk 0:02:59]}  d5 {[%clk 0:03:00]} 2. c4 {[%clk 0:02:58]}  c6 {[%clk 0:03:00]} 3. Nf3 {[%clk 0:02:58]}  Nf6 {[%clk 0:03:00]} 4. Nc3 {[%clk 0:02:57]}  g6 {[%clk 0:03:01]} 5. cxd5 {[%clk 0:02:56]}  cxd5 {[%clk 0:03:01]} 6. e3 {[%clk 0:02:55]}  Bg7 {[%clk 0:03:01]} 7. Be2 {[%clk 0:02:55]}  O-O {[%clk 0:03:01]} 8. O-O {[%clk 0:02:55]}  Ne4 {[%clk 0:03:01]} 9. Qb3 {[%clk 0:02:55]}  Nxc3 {[%clk 0:03:01]} 10. bxc3 {[%clk 0:02:54]}  Nc6 {[%clk 0:03:01]} 11. Ba3 {[%clk 0:02:53]}  Re8 {[%clk 0:03:00]} 12. Rab1 {[%clk 0:02:52]}  b6 {[%clk 0:03:00]} 13. Rfc1 {[%clk 0:02:46]}  Bb7 {[%clk 0:03:00]} 14. Qa4 {[%clk 0:02:40]}  e5 {[%clk 0:02:52]} 15. Bb5 {[%clk 0:02:25]}  Re6 {[%clk 0:02:51]} 16. dxe5 {[%clk 0:02:18]}  Nxe5 {[%clk 0:02:27]} 17. Nd4 {[%clk 0:02:17]}  Rf6 {[%clk 0:02:27]} 18. h3 {[%clk 0:01:57]}  a6 {[%clk 0:02:26]} 19. Be2 {[%clk 0:01:44]}  b5 {[%clk 0:02:26]} 20. Qd1 {[%clk 0:01:41]}  Nc4 {[%clk 0:02:26]} 21. Bb4 {[%clk 0:01:21]}  Rc8 {[%clk 0:02:20]} 22. a4 {[%clk 0:01:20]}  a5 {[%clk 0:02:20]} 23. Bxc4 {[%clk 0:01:08]}  axb4 {[%clk 0:02:11]} 24. Bxb5 {[%clk 0:01:02]}  bxc3 {[%clk 0:02:11]} 25. Qb3 {[%clk 0:00:56]}  Qa5 {[%clk 0:02:10]} 26. Rc2 {[%clk 0:00:52]}  Rb6 {[%clk 0:01:42]} 27. Rbc1 {[%clk 0:00:47]}  Bxd4 {[%clk 0:01:38]} 28. exd4 {[%clk 0:00:47]}  Ba6 {[%clk 0:01:37]} 29. Rxc3 {[%clk 0:00:45]}  Rxc3 {[%clk 0:01:36]} 30. Qxc3 {[%clk 0:00:45]}  Qxc3 {[%clk 0:01:35]} 31. Rxc3 {[%clk 0:00:45]}  Bxb5 {[%clk 0:01:33]} 32. Rb3 {[%clk 0:00:41]}  Kg7 {[%clk 0:01:27]} 33. axb5 {[%clk 0:00:36]}  Kf6 {[%clk 0:01:26]} 34. Kf1 {[%clk 0:00:36]}  Kf5 {[%clk 0:01:26]} 35. Ke2 {[%clk 0:00:36]}  Ke4 {[%clk 0:01:26]} 36. Rb4 {[%clk 0:00:36]}  g5 {[%clk 0:01:26]} 37. f3+ {[%clk 0:00:36]}  Kf4 {[%clk 0:01:26]} 38. Kf2 {[%clk 0:00:37]}  h5 {[%clk 0:01:26]} 39. g3+ {[%clk 0:00:37]}  Kf5 {[%clk 0:01:26]} 40. Ke3 {[%clk 0:00:37]}  h4 {[%clk 0:01:26]} 41. g4+ {[%clk 0:00:36]}  Ke6 {[%clk 0:01:26]} 42. f4 {[%clk 0:00:37]}  f5 {[%clk 0:01:26]} 43. fxg5 {[%clk 0:00:30]}  fxg4 {[%clk 0:01:26]} 44. hxg4 {[%clk 0:00:30]}  Kf7 {[%clk 0:01:26]} 45. Kf4 {[%clk 0:00:25]}  Kg6 {[%clk 0:01:26]} 46. Ke5 {[%clk 0:00:25]}  h3 {[%clk 0:01:23]} 47. Kxd5 {[%clk 0:00:25]}  h2 {[%clk 0:01:23]} 48. Rb1 {[%clk 0:00:25]}  Rxb5+ {[%clk 0:01:23]} 49. Rxb5 {[%clk 0:00:23]}  h1=Q+ {[%clk 0:01:22]} 50. Kc4 {[%clk 0:00:23]}  Qf1+ {[%clk 0:01:22]} 51. Kc5 {[%clk 0:00:23]}  Kxg5 {[%clk 0:01:22]} 52. d5 {[%clk 0:00:23]}  Qc1+ {[%clk 0:01:19]} 53. Kd6 {[%clk 0:00:23]}  Kxg4 {[%clk 0:01:19]} 54. Rc5 {[%clk 0:00:22]}  Qa3 {[%clk 0:01:15]} 55. Kc6 {[%clk 0:00:22]}  Kf5 {[%clk 0:01:14]} 56. d6+ {[%clk 0:00:21]}  Ke6 {[%clk 0:01:14]} 57. Kb5 {[%clk 0:00:11]}  Kxd6 {[%clk 0:01:13]} 58. Rc6+ {[%clk 0:00:11]}  Kd5 {[%clk 0:01:13]} 59. Rc7 {[%clk 0:00:10]}  Qb2+ {[%clk 0:01:10]} 60. Ka6 {[%clk 0:00:09]}  Qe5 {[%clk 0:01:05]} 61. Rb7 {[%clk 0:00:07]}  Kc6 {[%clk 0:01:01]} 62. Rb6+ {[%clk 0:00:04]}  Kc7 {[%clk 0:01:01]} 63. Rb7+ {[%clk 0:00:04]}  Kc8 {[%clk 0:01:01]} 64. Rb5 {[%clk 0:00:04]}  Qa1+ {[%clk 0:00:59]} 65. Kb6 {[%clk 0:00:02]}  Qg1+ {[%clk 0:00:52]} 66. Rc5+ {[%clk 0:00:03]}  Kd7 {[%clk 0:00:52]} 67. Kb5 {[%clk 0:00:03]}  Kd6 {[%clk 0:00:51]} 68. Rc4 {[%clk 0:00:04]}  Kd5 {[%clk 0:00:49]} 69. Rb4 {[%clk 0:00:01]}  Qa7 {[%clk 0:00:49]} 0-1


[Site "https://www.chess.com"]

[Event "Titled Tuesday Blitz January 25 2022"]
[White "Renjith, Sravan"]
[Black "Vlassov, Nikolai"]
[WhiteFideId "4306783"]
[BlackFideId "4103360"]
[WhiteElo "1863"]
[BlackElo "2407"]
[Result "0-1"]
[Round "10"]
[TimeControl "180+1"]
[Date "2022.01.26"]
[WhiteClock "0:00:03"]
[BlackClock "0:00:03"]

1. d4 {[%clk 0:03:00]}  Nf6 {[%clk 0:02:59]} 2. Bf4 {[%clk 0:02:57]}  g6 {[%clk 0:02:59]} 3. e3 {[%clk 0:02:54]}  Bg7 {[%clk 0:02:59]} 4. Nf3 {[%clk 0:02:50]}  O-O {[%clk 0:02:58]} 5. h3 {[%clk 0:02:50]}  d6 {[%clk 0:02:58]} 6. Nbd2 {[%clk 0:02:50]}  c5 {[%clk 0:02:59]} 7. c3 {[%clk 0:02:50]}  cxd4 {[%clk 0:02:58]} 8. exd4 {[%clk 0:02:49]}  Qb6 {[%clk 0:02:58]} 9. Nc4 {[%clk 0:02:47]}  Qc7 {[%clk 0:02:58]} 10. Be2 {[%clk 0:02:46]}  Nc6 {[%clk 0:02:58]} 11. O-O {[%clk 0:02:46]}  b5 {[%clk 0:02:54]} 12. Ne3 {[%clk 0:02:46]}  b4 {[%clk 0:02:55]} 13. cxb4 {[%clk 0:02:44]}  Nxb4 {[%clk 0:02:53]} 14. a3 {[%clk 0:02:41]}  Nbd5 {[%clk 0:02:52]} 15. Rc1 {[%clk 0:02:33]}  Qb7 {[%clk 0:02:46]} 16. Nxd5 {[%clk 0:02:30]}  Nxd5 {[%clk 0:02:45]} 17. Bh2 {[%clk 0:02:28]}  Qxb2 {[%clk 0:02:43]} 18. Bc4 {[%clk 0:02:25]}  Nb6 {[%clk 0:02:35]} 19. Bd3 {[%clk 0:02:05]}  Qxa3 {[%clk 0:02:33]} 20. Qe2 {[%clk 0:02:01]}  Nd5 {[%clk 0:02:08]} 21. Ra1 {[%clk 0:01:48]}  Qb4 {[%clk 0:01:43]} 22. Rfb1 {[%clk 0:01:44]}  Qc3 {[%clk 0:01:43]} 23. Be4 {[%clk 0:01:44]}  Be6 {[%clk 0:01:33]} 24. Rc1 {[%clk 0:01:15]}  Qb4 {[%clk 0:01:32]} 25. Rcb1 {[%clk 0:01:01]}  Qc3 {[%clk 0:01:29]} 26. Rc1 {[%clk 0:01:01]}  Qb3 {[%clk 0:01:23]} 27. Ng5 {[%clk 0:00:19]}  Nc3 {[%clk 0:01:09]} 28. Qf3 {[%clk 0:00:15]}  Nxe4 {[%clk 0:01:09]} 29. Qxe4 {[%clk 0:00:16]}  Bh6 {[%clk 0:01:03]} 30. Bf4 {[%clk 0:00:05]}  Qd5 {[%clk 0:00:59]} 31. Qe3 {[%clk 0:00:04]}  Bxg5 {[%clk 0:00:53]} 32. Bxg5 {[%clk 0:00:05]}  f6 {[%clk 0:00:54]} 33. Bh6 {[%clk 0:00:05]}  Rf7 {[%clk 0:00:54]} 34. Re1 {[%clk 0:00:05]}  Bd7 {[%clk 0:00:53]} 35. Bf4 {[%clk 0:00:05]}  Bc6 {[%clk 0:00:51]} 36. f3 {[%clk 0:00:04]}  a5 {[%clk 0:00:51]} 37. Bg3 {[%clk 0:00:04]}  a4 {[%clk 0:00:52]} 38. Ra3 {[%clk 0:00:03]}  e5 {[%clk 0:00:50]} 39. dxe5 {[%clk 0:00:04]}  dxe5 {[%clk 0:00:50]} 40. Rea1 {[%clk 0:00:05]}  Rd7 {[%clk 0:00:46]} 41. Bf2 {[%clk 0:00:05]}  Kf7 {[%clk 0:00:43]} 42. R3a2 {[%clk 0:00:05]}  Qe6 {[%clk 0:00:37]} 43. Ra3 {[%clk 0:00:05]}  Rd5 {[%clk 0:00:36]} 44. Qb6 {[%clk 0:00:04]}  Rd7 {[%clk 0:00:34]} 45. Qe3 {[%clk 0:00:04]}  Rad8 {[%clk 0:00:34]} 46. Kh2 {[%clk 0:00:03]}  Rd1 {[%clk 0:00:31]} 47. Qh6 {[%clk 0:00:04]}  Kg8 {[%clk 0:00:27]} 48. Qe3 {[%clk 0:00:04]}  Rxa1 {[%clk 0:00:26]} 49. Rxa1 {[%clk 0:00:05]}  Qd6 {[%clk 0:00:24]} 50. Qb6 {[%clk 0:00:05]}  Rb8 {[%clk 0:00:22]} 51. Qa6 {[%clk 0:00:05]}  Rd8 {[%clk 0:00:17]} 52. Qb6 {[%clk 0:00:05]}  f5 {[%clk 0:00:16]} 53. Bc5 {[%clk 0:00:05]}  Qd5 {[%clk 0:00:14]} 54. Re1 {[%clk 0:00:03]}  e4 {[%clk 0:00:14]} 55. fxe4 {[%clk 0:00:04]}  fxe4 {[%clk 0:00:14]} 56. Rxe4 {[%clk 0:00:04]}  Qxe4 {[%clk 0:00:07]} 57. Qxd8+ {[%clk 0:00:04]}  Kf7 {[%clk 0:00:07]} 58. Qf8+ {[%clk 0:00:05]}  Ke6 {[%clk 0:00:08]} 59. Qd6+ {[%clk 0:00:05]}  Kf7 {[%clk 0:00:07]} 60. Qc7+ {[%clk 0:00:04]}  Ke8 {[%clk 0:00:05]} 61. Qc8+ {[%clk 0:00:04]}  Kf7 {[%clk 0:00:04]} 62. Qf8+ {[%clk 0:00:04]}  Ke6 {[%clk 0:00:04]} 63. Qd6+ {[%clk 0:00:04]}  Kf7 {[%clk 0:00:04]} 64. Qc7+ {[%clk 0:00:03]}  Ke6 {[%clk 0:00:04]} 65. Qc8+ {[%clk 0:00:03]}  Kd5 {[%clk 0:00:04]} 66. Qf8 {[%clk 0:00:02]}  Qe5+ {[%clk 0:00:04]} 67. Kg1 {[%clk 0:00:02]}  Kc4 {[%clk 0:00:04]} 68. Bd6 {[%clk 0:00:02]}  Qd4+ {[%clk 0:00:04]} 69. Kh2 {[%clk 0:00:03]}  Qd5 {[%clk 0:00:04]} 70. Qf4+ {[%clk 0:00:04]}  Kb3 {[%clk 0:00:04]} 71. Be5 {[%clk 0:00:03]}  Qxg2# {[%clk 0:00:03]} 0-1


[Site "https://www.chess.com"]

[Event "Titled Tuesday Blitz January 25 2022"]
[White "Rychagov, Andrey"]
[Black "Suarez Uriel, Adrian"]
[WhiteFideId "4119932"]
[BlackFideId "22230874"]
[WhiteElo "2500"]
[BlackElo "2316"]
[Result "1-0"]
[Round "10"]
[TimeControl "180+1"]
[Date "2022.01.26"]
[WhiteClock "0:01:23"]
[BlackClock "0:01:12"]

1. d4 {[%clk 0:03:00]}  Nf6 {[%clk 0:03:00]} 2. c4 {[%clk 0:03:00]}  g6 {[%clk 0:03:00]} 3. Nc3 {[%clk 0:03:00]}  d5 {[%clk 0:03:01]} 4. Nf3 {[%clk 0:02:59]}  Bg7 {[%clk 0:03:01]} 5. cxd5 {[%clk 0:02:59]}  Nxd5 {[%clk 0:03:01]} 6. Bg5 {[%clk 0:03:00]}  O-O {[%clk 0:02:57]} 7. Rc1 {[%clk 0:02:59]}  Nc6 {[%clk 0:02:56]} 8. e3 {[%clk 0:02:55]}  Re8 {[%clk 0:02:53]} 9. Be2 {[%clk 0:02:52]}  Bg4 {[%clk 0:02:42]} 10. O-O {[%clk 0:02:51]}  Qd7 {[%clk 0:02:42]} 11. Qb3 {[%clk 0:02:45]}  Nb6 {[%clk 0:02:40]} 12. Rfd1 {[%clk 0:02:38]}  Rad8 {[%clk 0:02:33]} 13. a4 {[%clk 0:02:25]}  Na5 {[%clk 0:02:11]} 14. Qb4 {[%clk 0:02:22]}  Nc6 {[%clk 0:02:11]} 15. Qa3 {[%clk 0:02:21]}  a5 {[%clk 0:02:10]} 16. d5 {[%clk 0:02:20]}  Nb4 {[%clk 0:02:09]} 17. Bb5 {[%clk 0:02:20]}  Qf5 {[%clk 0:02:07]} 18. e4 {[%clk 0:02:20]}  Qc8 {[%clk 0:02:02]} 19. Bxe8 {[%clk 0:02:18]}  Bxf3 {[%clk 0:02:02]} 20. Bxf7+ {[%clk 0:02:13]}  Kxf7 {[%clk 0:02:01]} 21. gxf3 {[%clk 0:02:13]}  Qh3 {[%clk 0:01:59]} 22. Ne2 {[%clk 0:02:12]}  Bxb2 {[%clk 0:01:33]} 23. Qxb2 {[%clk 0:02:06]}  Qxf3 {[%clk 0:01:33]} 24. Ng3 {[%clk 0:01:58]}  h5 {[%clk 0:01:32]} 25. Rd2 {[%clk 0:01:31]}  Kg8 {[%clk 0:01:14]} 26. Rxc7 {[%clk 0:01:28]}  Rf8 {[%clk 0:01:14]} 27. Rxe7 {[%clk 0:01:26]}  Rf7 {[%clk 0:01:14]} 28. Re8+ {[%clk 0:01:24]}  Rf8 {[%clk 0:01:15]} 29. Rxf8+ {[%clk 0:01:24]}  Qxf8 {[%clk 0:01:12]} 30. Qf6 {[%clk 0:01:24]}  Qxf6 {[%clk 0:01:11]} 31. Bxf6 {[%clk 0:01:24]}  Nxa4 {[%clk 0:01:12]} 32. d6 {[%clk 0:01:23]} 1-0


[Site "https://www.chess.com"]